fUST/lending_fUST_20241229
["ID","MTS","AMOUNT","RATE_DAILY","PERIOD"]
[346986136,1735453841837,-500.0,0.00010117,2]
[346986137,1735453841847,-500.0,0.00010117,2]
[346986138,1735453841856,-500.0,0.00010117,2]
[346986139,1735453841866,-500.0,0.00010117,2]
[346986140,1735453841875,-500.0,0.00010117,2]
[346986141,1735453841885,-500.0,0.00010117,2]
[346986142,1735453841895,-500.0,0.00010117,2]
[346986143,1735453841905,-500.0,0.00010117,2]
[346986144,1735453841914,-500.0,0.00010117,2]
[346986145,1735453841923,-500.0,0.00010117,2]
[346986146,1735453841933,-500.0,0.00010117,2]
[346986147,1735453841943,-500.0,0.00010117,2]
[346986148,1735453841952,-500.0,0.00010117,2]
[346986149,1735453841962,-500.0,0.00010117,2]
[346986150,1735453841973,-500.0,0.00010117,2]
[346986151,1735453841983,-500.0,0.00010117,2]
[346986152,1735453841993,-500.0,0.00010117,2]
[346986153,1735453842002,-1058.83,0.00010117,2]
[346986154,1735453842012,-408.16,0.00010117,2]
[346986155,1735453842022,-500.0,0.00010117,2]
[346986156,1735453842033,-500.0,0.00010117,2]
[346986157,1735453842043,-330.18,0.00010117,2]
[346986158,1735453842053,-500.0,0.00010117,2]
[346986159,1735453842063,-564.95,0.00010117,2]
[346986160,1735453842072,-8142.44,0.00010117,2]
[346986161,1735453842081,-500.0,0.00010117,2]
[346986162,1735453842090,-500.0,0.00010117,2]
[346986163,1735453842099,-500.0,0.00010117,2]
[346986164,1735453842109,-500.0,0.00010117,2]
[346986165,1735453842118,-500.0,0.00010117,2]
[346986166,1735453842127,-500.0,0.00010118,2]
[346986167,1735453842136,-500.0,0.00010118,2]
[346986168,1735453842145,-500.0,0.00010118,2]
[346986169,1735453842155,-879.922795,0.00010118,2]
[346986170,1735453842163,-879.922795,0.00010118,2]
[346986171,1735453842173,-500.0,0.00010119,2]
[346986172,1735453842182,-349.33,0.00010119,2]
[346986173,1735453842192,-881.36,0.00010119,2]
[346986174,1735453842201,-500.0,0.0001012,2]
[346986175,1735453842210,-500.0,0.0001039,2]
[346986176,1735453842220,-595.55,0.0001039,2]
[346986177,1735453842229,-500.0,0.0001039,2]
[346986178,1735453842238,-500.0,0.0001039,2]
[346986179,1735453842248,-500.0,0.0001039,2]
[346986180,1735453842257,-500.0,0.00010391,2]
[346986181,1735453842266,-500.0,0.00010391,2]
[346986182,1735453842276,-500.0,0.00010391,2]
[346986183,1735453842285,-151.0,0.00010391,2]
[346986184,1735453842294,-500.0,0.00010391,2]
[346986185,1735453842304,-530.19702218,0.00010391,2]
[346986186,1735453842313,-500.0,0.00010391,2]
[346986187,1735453842323,-500.0,0.00010391,2]
[346986188,1735453842333,-500.0,0.00010391,2]
[346986189,1735453842342,-500.0,0.00010391,2]
[346986190,1735453842351,-374.07,0.00010391,2]
[346986191,1735453842360,-500.0,0.00010391,2]
[346986192,1735453842369,-1058.83,0.00010391,2]
[346986193,1735453842379,-500.0,0.00010391,2]
[346986194,1735453842388,-500.0,0.00010391,2]
[346986195,1735453842397,-219.27,0.00010391,2]
[346986196,1735453842407,-564.95,0.00010391,2]
[346986197,1735453842491,-8142.44,0.00010391,2]
[346986198,1735453842503,-500.0,0.00010391,2]
[346986199,1735453842512,-500.0,0.00010391,2]
[346986200,1735453842522,-500.0,0.00010391,2]
[346986201,1735453842532,-500.0,0.00010391,2]
[346986202,1735453842542,-500.0,0.00010391,2]
[346986203,1735453842551,-500.0,0.00010392,2]
[346986204,1735453842560,-500.0,0.00010392,2]
[346986205,1735453842570,-500.0,0.00010392,2]
[346986206,1735453842579,-500.0,0.00010392,2]
[346986207,1735453842588,-1258.11,0.00010392,2]
[346986208,1735453842597,-500.0,0.00010393,2]
[346986209,1735453842607,-879.922795,0.00010393,2]
[346986210,1735453842616,-879.922795,0.00010393,2]
[346986211,1735453842626,-881.36,0.00010393,2]
[346986212,1735453842636,-500.0,0.00010394,2]
[346986213,1735453842645,-1491.2730714,0.00010633,2]
[346986214,1735453842655,-500.0,0.00010664,2]
[346986215,1735453842664,-595.55,0.00010664,2]
[346986216,1735453842674,-500.0,0.00010664,2]
[346986217,1735453842683,-500.0,0.00010664,2]
[346986218,1735453842693,-500.0,0.00010664,2]
[346986219,1735453842702,-500.0,0.00010665,2]
[346986220,1735453842712,-500.0,0.00010665,2]
[346986221,1735453842721,-151.0,0.00010665,2]
[346986222,1735453842731,-500.0,0.00010665,2]
[346986223,1735453842740,-500.0,0.00010665,2]
[346986224,1735453842749,-550.71,0.00010665,2]
[346986225,1735453842759,-500.0,0.00010665,2]
[346986226,1735453842768,-500.0,0.00010665,2]
[346986227,1735453842778,-1058.83,0.00010665,2]
[346986228,1735453842787,-500.0,0.00010665,2]
[346986229,1735453842796,-500.0,0.00010665,2]
[346986230,1735453842805,-564.95,0.00010665,2]
[346986231,1735453842815,-8142.44,0.00010665,2]
[346986232,1735453842824,-500.0,0.00010665,2]
[346986233,1735453842834,-500.0,0.00010665,2]
[346986234,1735453842842,-500.0,0.00010665,2]
[346986235,1735453842852,-500.0,0.00010665,2]
[346986236,1735453842861,-500.0,0.00010665,2]
[346986237,1735453842871,-500.0,0.00010666,2]
[346986238,1735453842880,-500.0,0.00010666,2]
[346986239,1735453842890,-500.0,0.00010666,2]
[346986240,1735453842899,-1258.11,0.00010666,2]
[346986241,1735453842909,-500.0,0.00010667,2]
[346986242,1735453842918,-881.36,0.00010667,2]
[346986243,1735453842928,-500.0,0.00010668,2]
[346986244,1735453842937,-500.51674004,0.00010846,2]
[346986245,1735453842946,-501.01795844,0.00010922,2]
[346986246,1735453842955,-531.61,0.00010938,2]
[346986247,1735453842965,-595.55,0.00010938,2]
[346986248,1735453842974,-601.84,0.00010938,2]
[346986249,1735453842983,-500.0,0.00010938,2]
[346986250,1735453842993,-500.0,0.00010939,2]
[346986251,1735453843003,-500.0,0.00010939,2]
[346986252,1735453843012,-500.0,0.00010939,2]
[346986253,1735453843021,-500.0,0.00010939,2]
[346986254,1735453843031,-609.47,0.00010939,2]
[346986255,1735453843040,-500.0,0.00010939,2]
[346986256,1735453843050,-500.0,0.00010939,2]
[346986257,1735453843060,-1058.83,0.00010939,2]
[346986258,1735453843069,-879.922795,0.00010939,2]
[346986259,1735453843079,-879.922795,0.00010939,2]
[346986260,1735453843089,-159.83782104,0.00010939,2]
[346986261,1735453843099,-564.95,0.00010939,2]
[346986262,1735453843108,-8142.44,0.00010939,2]
[346986263,1735453843117,-500.0,0.00010939,2]
[346986264,1735453843126,-500.0,0.00010939,2]
[346986265,1735453843136,-500.0,0.00010939,2]
[346986266,1735453843146,-500.0,0.0001094,2]
[346986267,1735453843156,-592.6,0.0001094,2]
[346986268,1735453843165,-500.0,0.0001094,2]
[346986269,1735453843175,-1258.11,0.0001094,2]
[346986270,1735453843185,-500.0,0.00010941,2]
[346986271,1735453843195,-151.0,0.00010941,2]
[346986272,1735453843205,-881.36,0.00010941,2]
[346986273,1735453843215,-500.0,0.00010942,2]
[346986274,1735453843224,-500.0,0.00010958,2]
[346986275,1735453843234,-289.259,0.00010959,2]
[346986276,1735453843243,-151.0,0.00010959,2]
[346986277,1735453843253,-151.0,0.00010959,2]
[346986278,1735453843262,-151.0,0.00010959,2]
[346986279,1735453843272,-225.827086,0.00010959,2]
[346986280,1735453843281,-225.827086,0.00010959,2]
[346986281,1735453843291,-225.827086,0.00010959,2]
[346986282,1735453843300,-225.827086,0.00010959,2]
[346986283,1735453843310,-225.827086,0.00010959,2]
[346986284,1735453843319,-225.827086,0.00010959,2]
[346986285,1735453843328,-151.0,0.00010959,2]
[346986286,1735453843338,-151.0,0.00010959,2]
[346986287,1735453843347,-151.0,0.00010959,2]
[346986288,1735453843357,-151.0,0.00010959,2]
[346986289,1735453843366,-217.666756,0.00010959,2]
[346986290,1735453843375,-151.0,0.00010959,2]
[346986291,1735453843385,-151.0,0.00010959,2]
[346986292,1735453843394,-151.833158,0.00010959,2]
[346986293,1735453843404,-151.0,0.00010959,2]
[346986294,1735453843414,-151.0,0.00010959,2]
[346986295,1735453843424,-151.0,0.00010959,2]
[346986296,1735453843439,-151.0,0.00010959,2]
[346986297,1735453843448,-151.0,0.00010959,2]
[346986298,1735453843458,-151.0,0.00010959,2]
[346986299,1735453843467,-151.0,0.00010959,2]
[346986300,1735453843479,-151.0,0.00010959,2]
[346986301,1735453843488,-151.0,0.00010959,2]
[346986302,1735453843497,-151.0,0.00010959,2]
[346986303,1735453843508,-151.0,0.00010959,2]
[346986304,1735453843517,-151.0,0.00010959,2]
[346986306,1735453843527,-151.0,0.00010959,2]
[346986308,1735453843536,-151.0,0.00010959,2]
[346986310,1735453843546,-151.0,0.00010959,2]
[346986311,1735453843555,-151.0,0.00010959,2]
[346986312,1735453843564,-151.0,0.00010959,2]
[346986313,1735453843574,-151.0,0.00010959,2]
[346986314,1735453843583,-151.0,0.00010959,2]
[346986315,1735453843592,-151.0,0.00010959,2]
[346986316,1735453843602,-151.0,0.00010959,2]
[346986317,1735453843611,-151.0,0.00010959,2]
[346986318,1735453843620,-151.0,0.00010959,2]
[346986319,1735453843630,-151.0,0.00010959,2]
[346986320,1735453843639,-151.0,0.00010959,2]
[346986321,1735453843648,-151.0,0.00010959,2]
[346986322,1735453843658,-151.0,0.00010959,2]
[346986323,1735453843667,-151.0,0.00010959,2]
[346986324,1735453843676,-151.0,0.00010959,2]
[346986325,1735453843685,-151.0,0.00010959,2]
[346986326,1735453843694,-151.0,0.00010959,2]
[346986327,1735453843703,-151.0,0.00010959,2]
[346986328,1735453843713,-151.0,0.00010959,2]
[346986329,1735453843722,-159.452808,0.00010959,2]
[346986330,1735453843732,-151.0,0.00010959,2]
[346986331,1735453843741,-151.0,0.00010959,2]
[346986332,1735453843750,-151.0,0.00010959,2]
[346986333,1735453843759,-152.222023,0.00010959,2]
[346986334,1735453843769,-152.779326,0.00010959,2]
[346986335,1735453843778,-292.533554,0.00010959,2]
[346986336,1735453843787,-151.0,0.00010959,2]
[346986337,1735453843796,-151.0,0.00010959,2]
[346986338,1735453843805,-151.0,0.00010959,2]
[346986339,1735453843814,-151.0,0.00010959,2]
[346986340,1735453843824,-151.0,0.00010959,2]
[346986341,1735453843833,-151.0,0.00010959,2]
[346986342,1735453843843,-151.0,0.00010959,2]
[346986343,1735453843852,-151.0,0.00010959,2]
[346986344,1735453843861,-151.0,0.00010959,2]
[346986345,1735453843871,-151.0,0.00010959,2]
[346986346,1735453843880,-151.0,0.00010959,2]
[346986347,1735453843889,-151.0,0.00010959,2]
[346986348,1735453843898,-151.0,0.00010959,2]
[346986349,1735453843907,-151.0,0.00010959,2]
[346986350,1735453843916,-151.0,0.00010959,2]
[346986351,1735453843926,-151.0,0.00010959,2]
[346986352,1735453843935,-156.333681,0.00010959,2]
[346986353,1735453843944,-151.0,0.00010959,2]
[346986354,1735453843953,-151.0,0.00010959,2]
[346986355,1735453843962,-151.0,0.00010959,2]
[346986356,1735453843971,-151.0,0.00010959,2]
[346986357,1735453843980,-151.0,0.00010959,2]
[346986358,1735453843989,-151.0,0.00010959,2]
[346986359,1735453843998,-151.0,0.00010959,2]
[346986360,1735453844007,-151.0,0.00010959,2]
[346986361,1735453844017,-151.0,0.00010959,2]
[346986362,1735453844027,-151.0,0.00010959,2]
[346986363,1735453844036,-151.0,0.00010959,2]
[346986364,1735453844046,-151.0,0.00010959,2]
[346986365,1735453844055,-151.0,0.00010959,2]
[346986366,1735453844067,-151.0,0.00010959,2]
[346986367,1735453844078,-151.0,0.00010959,2]
[346986368,1735453844087,-151.0,0.00010959,2]
[346986369,1735453844096,-151.0,0.00010959,2]
[346986370,1735453844106,-151.0,0.00010959,2]
[346986371,1735453844117,-194.580772,0.00010959,2]
[346986372,1735453844126,-151.0,0.00010959,2]
[346986373,1735453844136,-151.0,0.00010959,2]
[346986374,1735453844146,-151.0,0.00010959,2]
[346986375,1735453844155,-151.0,0.00010959,2]
[346986376,1735453844164,-151.0,0.00010959,2]
[346986377,1735453844174,-151.0,0.00010959,2]
[346986378,1735453844183,-151.0,0.00010959,2]
[346986379,1735453844193,-151.0,0.00010959,2]
[346986380,1735453844203,-151.0,0.00010959,2]
[346986381,1735453844212,-151.0,0.00010959,2]
[346986382,1735453844222,-151.0,0.00010959,2]
[346986383,1735453844231,-151.0,0.00010959,2]
[346986384,1735453844241,-206.523486,0.00010959,2]
[346986385,1735453844251,-151.0,0.00010959,2]
[346986386,1735453844261,-152.131241,0.00010959,2]
[346986387,1735453844272,-151.0,0.00010959,2]
[346986388,1735453844282,-151.0,0.00010959,2]
[346986389,1735453844291,-151.0,0.00010959,2]
[346986390,1735453844300,-151.0,0.00010959,2]
[346986391,1735453844311,-151.0,0.00010959,2]
[346986392,1735453844320,-151.452421,0.00010959,2]
[346986393,1735453844330,-873.454411,0.00010959,2]
[346986394,1735453844339,-873.454411,0.00010959,2]
[346986395,1735453844349,-873.454411,0.00010959,2]
[346986396,1735453844359,-873.454411,0.00010959,2]
[346986397,1735453844369,-873.454411,0.00010959,2]
[346986398,1735453844379,-873.454411,0.00010959,2]
[346986399,1735453844390,-873.454411,0.00010959,2]
[346986400,1735453844401,-873.454411,0.00010959,2]
[346986401,1735453844410,-873.454411,0.00010959,2]
[346986402,1735453844420,-873.454411,0.00010959,2]
[346986403,1735453844433,-873.454411,0.00010959,2]
[346986404,1735453844443,-873.454411,0.00010959,2]
[346986405,1735453844453,-873.454411,0.00010959,2]
[346986406,1735453844463,-873.454411,0.00010959,2]
[346986407,1735453844472,-157.713868,0.00010959,2]
[346986408,1735453844483,-157.713868,0.00010959,2]
[346986409,1735453844492,-157.713868,0.00010959,2]
[346986410,1735453844502,-157.713868,0.00010959,2]
[346986411,1735453844580,-157.713868,0.00010959,2]
[346986412,1735453844590,-157.713868,0.00010959,2]
[346986413,1735453844599,-157.713868,0.00010959,2]
[346986414,1735453844608,-157.713868,0.00010959,2]
[346986415,1735453844618,-157.713868,0.00010959,2]
[346986416,1735453844627,-157.713868,0.00010959,2]
[346986417,1735453844636,-157.713868,0.00010959,2]
[346986418,1735453844646,-157.713868,0.00010959,2]
[346986419,1735453844655,-157.713868,0.00010959,2]
[346986420,1735453844665,-157.713868,0.00010959,2]
[346986421,1735453844674,-153.760651,0.00010959,2]
[346986422,1735453844684,-151.0,0.00010959,2]
[346986423,1735453844695,-151.0,0.00010959,2]
[346986424,1735453844704,-151.0,0.00010959,2]
[346986425,1735453844713,-261.941508,0.00010959,2]
[346986426,1735453844723,-151.0,0.00010959,2]
[346986427,1735453844732,-151.0,0.00010959,2]
[346986428,1735453844742,-151.0,0.00010959,2]
[346986429,1735453844751,-151.0,0.00010959,2]
[346986430,1735453844760,-151.0,0.00010959,2]
[346986431,1735453844770,-151.0,0.00010959,2]
[346986432,1735453844779,-151.0,0.00010959,2]
[346986433,1735453844788,-151.0,0.00010959,2]
[346986434,1735453844797,-151.0,0.00010959,2]
[346986435,1735453844807,-285.047819,0.00010959,2]
[346986436,1735453844818,-151.0,0.00010959,2]
[346986437,1735453844827,-151.0,0.00010959,2]
[346986438,1735453844836,-173.700571,0.00010959,2]
[346986439,1735453844845,-152.847088,0.00010959,2]
[346986440,1735453844855,-173.700571,0.00010959,2]
[346986441,1735453844864,-173.700571,0.00010959,2]
[346986442,1735453844874,-173.700571,0.00010959,2]
[346986443,1735453844883,-173.700571,0.00010959,2]
[346986444,1735453844893,-173.700571,0.00010959,2]
[346986445,1735453844902,-173.700571,0.00010959,2]
[346986446,1735453844911,-173.700571,0.00010959,2]
[346986447,1735453844921,-173.700571,0.00010959,2]
[346986448,1735453844930,-173.700571,0.00010959,2]
[346986449,1735453844940,-173.700571,0.00010959,2]
[346986450,1735453844949,-173.700571,0.00010959,2]
[346986451,1735453844959,-173.700571,0.00010959,2]
[346986452,1735453844969,-173.700571,0.00010959,2]
[346986453,1735453844978,-173.700571,0.00010959,2]
[346986454,1735453844987,-173.700571,0.00010959,2]
[346986455,1735453844996,-172.025869,0.00010959,2]
[346986456,1735453845006,-172.025869,0.00010959,2]
[346986457,1735453845016,-172.025869,0.00010959,2]
[346986458,1735453845025,-172.025869,0.00010959,2]
[346986459,1735453845035,-172.025869,0.00010959,2]
[346986460,1735453845044,-172.025869,0.00010959,2]
[346986461,1735453845054,-172.025869,0.00010959,2]
[346986462,1735453845064,-172.025869,0.00010959,2]
[346986463,1735453845074,-172.025869,0.00010959,2]
[346986464,1735453845083,-172.025869,0.00010959,2]
[346986465,1735453845093,-172.025869,0.00010959,2]
[346986466,1735453845102,-172.025869,0.00010959,2]
[346986467,1735453845112,-172.025869,0.00010959,2]
[346986468,1735453845121,-172.025869,0.00010959,2]
[346986469,1735453845131,-172.025869,0.00010959,2]
[346986470,1735453845140,-172.025869,0.00010959,2]
[346986471,1735453845149,-172.025869,0.00010959,2]
[346986472,1735453845158,-172.025869,0.00010959,2]
[346986473,1735453845167,-151.0,0.00010959,2]
[346986474,1735453845176,-151.0,0.00010959,2]
[346986475,1735453845185,-151.0,0.00010959,2]
[346986476,1735453845194,-151.0,0.00010959,2]
[346986477,1735453845203,-151.0,0.00010959,2]
[346986478,1735453845212,-151.0,0.00010959,2]
[346986479,1735453845222,-151.0,0.00010959,2]
[346986480,1735453845231,-163.384707,0.00010959,2]
[346986481,1735453845240,-151.0,0.00010959,2]
[346986482,1735453845249,-225.827086,0.00010959,2]
[346986483,1735453845259,-225.827086,0.00010959,2]
[346986484,1735453845268,-151.0,0.00010959,2]
[346986485,1735453845277,-151.0,0.00010959,2]
[346986486,1735453845286,-151.0,0.00010959,2]
[346986487,1735453845295,-240.258523,0.00010959,2]
[346986488,1735453845305,-151.0,0.00010959,2]
[346986489,1735453845314,-151.0,0.00010959,2]
[346986490,1735453845324,-151.0,0.00010959,2]
[346986491,1735453845333,-151.0,0.00010959,2]
[346986492,1735453845342,-151.0,0.00010959,2]
[346986493,1735453845351,-151.0,0.00010959,2]
[346986494,1735453845361,-151.0,0.00010959,2]
[346986495,1735453845371,-879.922795,0.00010959,2]
[346986496,1735453845379,-879.922795,0.00010959,2]
[346986497,1735453845389,-879.922795,0.00010959,2]
[346986498,1735453845398,-879.922795,0.00010959,2]
[346986499,1735453845408,-873.454411,0.00010959,2]
[346986500,1735453845417,-873.454411,0.00010959,2]
[346986501,1735453845430,-873.454411,0.00010959,2]
[346986502,1735453845440,-873.454411,0.00010959,2]
[346986503,1735453845451,-157.713868,0.00010959,2]
[346986504,1735453845460,-157.713868,0.00010959,2]
[346986505,1735453845471,-151.0,0.00010959,2]
[346986506,1735453845481,-173.700571,0.00010959,2]
[346986507,1735453845491,-173.700571,0.00010959,2]
[346986508,1735453845500,-172.025869,0.00010959,2]
[346986509,1735453845511,-172.025873,0.00010959,2]
[346986510,1735453845520,-2873.93020903,0.00011,2]
[346986511,1735453845531,-151.0,0.00011,2]
[346986512,1735453845540,-500.0,0.00011116,2]
[346986513,1735453845550,-500.0,0.00011116,2]
[346986514,1735453845559,-151.0,0.00011116,2]
[346986515,1735453845568,-151.0,0.00011116,2]
[346986516,1735453845578,-157.713868,0.00011116,2]
[346986517,1735453845587,-157.713868,0.00011116,2]
[346986518,1735453845597,-173.700571,0.00011116,2]
[346986519,1735453845607,-173.700576,0.00011116,2]
[346986520,1735453845616,-151.0,0.00011117,2]
[346986521,1735453845626,-225.827086,0.00011117,2]
[346986522,1735453845635,-225.827086,0.00011117,2]
[346986523,1735453845645,-267.309383,0.00011117,2]
[346986524,1735453845654,-501.01775287,0.00011124,2]
[346986525,1735453845663,-595.55,0.00011212,2]
[346986526,1735453845672,-500.0,0.00011212,2]
[346986527,1735453845682,-172.63,0.00011213,2]
[346986528,1735453845692,-151.0,0.00011213,2]
[346986529,1735453845702,-500.0,0.00011213,2]
[346986530,1735453845711,-500.0,0.00011213,2]
[346986531,1735453845721,-188.75,0.00011213,2]
[346986532,1735453845730,-264.18,0.00011213,2]
[346986533,1735453845740,-1058.83,0.00011213,2]
[346986534,1735453845749,-564.95,0.00011213,2]
[346986535,1735453845758,-8142.44,0.00011213,2]
[346986536,1735453845767,-500.0,0.00011213,2]
[346986537,1735453845776,-500.0,0.00011213,2]
[346986538,1735453845785,-500.0,0.00011213,2]
[346986539,1735453845794,-500.0,0.00011214,2]
[346986540,1735453845803,-500.0,0.00011214,2]
[346986541,1735453845812,-1258.11,0.00011214,2]
[346986542,1735453845821,-500.0,0.00011215,2]
[346986543,1735453845839,-151.0,0.00011215,2]
[346986544,1735453845850,-151.0,0.00011215,2]
[346986545,1735453845860,-151.0,0.00011215,2]
[346986546,1735453845871,-151.0,0.00011215,2]
[346986547,1735453845881,-879.922795,0.00011215,2]
[346986548,1735453845890,-879.922801,0.00011215,2]
[346986549,1735453845900,-873.454411,0.00011215,2]
[346986550,1735453845909,-873.454411,0.00011215,2]
[346986551,1735453845918,-881.36,0.00011215,2]
[346986552,1735453845928,-151.0,0.00011216,2]
[346986553,1735453845938,-177.79,0.00011216,2]
[346986554,1735453845947,-595.55,0.00011486,2]
[346986555,1735453845956,-532.41,0.00011486,2]
[346986556,1735453845965,-500.0,0.00011487,2]
[346986557,1735453845974,-500.0,0.00011487,2]
[346986558,1735453845984,-151.0,0.00011487,2]
[346986559,1735453845992,-151.0,0.00011487,2]
[346986560,1735453846002,-1058.83,0.00011487,2]
[346986561,1735453846011,-157.713868,0.00011487,2]
[346986562,1735453846021,-157.713858,0.00011487,2]
[346986563,1735453846031,-564.95,0.00011487,2]
[346986564,1735453846041,-8142.44,0.00011487,2]
[346986565,1735453846051,-500.0,0.00011487,2]
[346986566,1735453846060,-201.45,0.00011487,2]
[346986567,1735453846069,-561.2,0.00011487,2]
[346986568,1735453846079,-339.0,0.00011488,2]
[346986569,1735453846088,-225.827086,0.00011488,2]
[346986570,1735453846098,-225.827086,0.00011488,2]
[346986571,1735453846107,-500.0,0.00011488,2]
[346986572,1735453846117,-151.0,0.00011488,2]
[346986573,1735453846127,-881.36,0.00011489,2]
[346986574,1735453846137,-500.0,0.00011633,2]
[346986575,1735453846148,-500.85036124,0.00011687,2]
[346986576,1735453846158,-595.55,0.0001176,2]
[346986577,1735453846167,-151.0,0.00011761,2]
[346986578,1735453846177,-151.0,0.00011761,2]
[346986579,1735453846187,-500.0,0.00011761,2]
[346986580,1735453846197,-1058.83,0.00011761,2]
[346986581,1735453846209,-564.95,0.00011761,2]
[346986582,1735453846218,-8142.44,0.00011761,2]
[346986583,1735453846227,-500.0,0.00011761,2]
[346986584,1735453846237,-500.0,0.00011762,2]
[346986585,1735453846246,-151.0,0.00011763,2]
[346986586,1735453846255,-225.827086,0.00011763,2]
[346986587,1735453846265,-225.827086,0.00011763,2]
[346986588,1735453846274,-881.36,0.00011763,2]
[346986589,1735453846283,-1491.2730714,0.00011798,2]
[346986590,1735453846292,-32545.41385628,0.00011936,2]
[346986591,1735453846301,-151.0,0.00011936,2]
[346986592,1735453846310,-151.0,0.00011936,2]
[346986593,1735453846320,-151.0,0.00011936,2]
[346986594,1735453846330,-595.55,0.00012034,2]
[346986595,1735453846339,-412.49068298,0.00012035,2]
[346986596,1735453846348,-500.0,0.00012035,2]
[346986597,1735453846357,-1058.83,0.00012035,2]
[346986598,1735453846367,-564.95,0.00012035,2]
[346986599,1735453846377,-8142.44,0.00012035,2]
[346986600,1735453846387,-500.0,0.00012035,2]
[346986601,1735453846396,-500.0,0.00012036,2]
[346986602,1735453846405,-881.36,0.00012037,2]
[346986603,1735453846415,-595.55,0.00012308,2]
[346986604,1735453846520,-500.0,0.00012309,2]
[346986605,1735453846530,-1058.83,0.00012309,2]
[346986606,1735453846541,-564.95,0.00012309,2]
[346986607,1735453846550,-8142.44,0.00012309,2]
[346986608,1735453846560,-500.0,0.00012309,2]
[346986609,1735453846569,-225.827086,0.0001231,2]
[346986610,1735453846579,-225.827086,0.0001231,2]
[346986611,1735453846588,-500.0,0.0001231,2]
[346986612,1735453846597,-151.0,0.00012311,2]
[346986613,1735453846607,-881.36,0.00012311,2]
[346986614,1735453846616,-595.55,0.00012582,2]
[346986615,1735453846626,-500.0,0.00012583,2]
[346986616,1735453846635,-1058.83,0.00012583,2]
[346986617,1735453846646,-564.95,0.00012583,2]
[346986618,1735453846658,-8142.44,0.00012583,2]
[346986619,1735453846668,-500.0,0.00012583,2]
[346986620,1735453846678,-496.61,0.00012584,2]
[346986621,1735453846688,-881.36,0.00012585,2]
[346986622,1735453846697,-500.0,0.00012856,2]
[346986623,1735453846707,-1058.83,0.00012856,2]
[346986624,1735453846718,-564.95,0.00012856,2]
[346986625,1735453846728,-8142.44,0.00012856,2]
[346986626,1735453846737,-595.55,0.00012856,2]
[346986627,1735453846747,-500.0,0.00012856,2]
[346986628,1735453846756,-225.827086,0.00012858,2]
[346986629,1735453846765,-225.827086,0.00012858,2]
[346986630,1735453846775,-881.36,0.00012859,2]
[346986631,1735453846784,-168.4980594,0.000129,2]
[346986632,1735453846794,-1491.2730714,0.00012962,2]
[346986633,1735453846803,-168.4980594,0.00013033,2]
[346986634,1735453846812,-618.0,0.000131,2]
[346986635,1735453846822,-500.0,0.0001313,2]
[346986636,1735453846831,-1058.83,0.0001313,2]
[346986637,1735453846841,-564.95,0.0001313,2]
[346986638,1735453846850,-8142.44,0.0001313,2]